bitfinex-derivatives/quotes_BTCF0:USTF0_20251209
["timestamp","ask_amount","ask_price","bid_price","bid_amount"]
[1765321862566,0.1429028,92733.0,92732.0,0.13131]
[1765321863171,0.1429028,92733.0,92732.0,0.06438]
[1765321863665,0.1429038,92724.0,92723.0,0.06454183]
[1765321864061,0.1429038,92724.0,92723.0,0.13147183]
[1765321864564,0.1429038,92724.0,92723.0,0.14236224]
[1765321864764,0.1429029,92732.0,92723.0,0.01105224]
[1765321864953,0.13212,92724.0,92723.0,0.13247183]
[1765321865158,0.1429038,92724.0,92723.0,0.13247183]
[1765321865461,0.1429033,92728.0,92727.0,0.1420934]
[1765321865763,0.0772233,92728.0,92727.0,0.1420934]
[1765321865966,0.1429033,92728.0,92727.0,0.1420934]
[1765321866962,0.1439033,92728.0,92727.0,0.1420934]
[1765321867665,0.001,92728.0,92727.0,0.1420934]
[1765321867869,0.06629,92728.0,92727.0,0.1420934]
[1765321868068,0.12925,92728.0,92727.0,0.1420934]
[1765321868254,0.1390338,92724.0,92723.0,0.07555502]
[1765321868458,0.1390338,92724.0,92723.0,0.14134502]
[1765321869269,0.0760735,92727.0,92726.0,0.13047]
[1765321869468,0.1390335,92727.0,92726.0,0.13047]
[1765321870470,0.1400335,92727.0,92726.0,0.13047]
[1765321870870,0.06629,92727.0,92726.0,0.13047]
[1765321871070,0.001,92727.0,92726.0,0.13047]
[1765321871373,0.06629,92727.0,92726.0,0.13047]
[1765321871864,0.001,92727.0,92726.0,0.13047]
[1765321873476,0.06629,92727.0,92726.0,0.13047]
[1765321873870,0.12925,92727.0,92726.0,0.13047]
[1765321874873,0.12925,92727.0,92726.0,0.06468]
[1765321875467,0.12925,92727.0,92726.0,0.13047]
[1765321876368,0.001,92727.0,92726.0,0.13047]
[1765321877582,0.06629,92727.0,92726.0,0.13047]
[1765321878178,0.001,92727.0,92726.0,0.13047]
[1765321878378,0.06629,92727.0,92726.0,0.13047]
[1765321878677,0.12925,92727.0,92726.0,0.13047]
[1765321879264,0.1390337,92725.0,92724.0,0.13047]
[1765321886379,0.16029,92724.0,92723.0,0.00016183]
[1765321886580,0.16029,92724.0,92723.0,0.12426183]
[1765321891968,0.0708337,92725.0,92724.0,0.1740438]
[1765321892378,0.1340937,92725.0,92724.0,0.1740438]
[1765321895368,0.1340924,92736.0,92733.0,0.0107827]
[1765321895569,0.1340926,92734.0,92733.0,0.1348827]
[1765321895784,0.15867341,92734.0,92733.0,0.1348827]
[1765321895974,0.0107826,92734.0,92733.0,0.1348827]
[1765321896177,0.00107829,92740.0,92739.0,0.1241]
[1765321896672,0.00024009,92740.0,92739.0,0.5041]
[1765321896979,8.171e-05,92741.0,92740.0,0.1348819]
[1765321897183,0.1340899,92757.0,92756.0,0.1348801]
[1765321897484,0.1340894,92762.0,92761.0,0.0107793]
[1765321897784,0.1340894,92762.0,92761.0,0.1348793]
[1765321898088,0.12331,92762.0,92761.0,0.1348793]
[1765321898681,0.134089,92765.0,92764.0,0.1241]
[1765321900285,0.135089,92765.0,92764.0,0.1241]
[1765321900680,0.1340904,92753.0,92752.0,0.22656365]
[1765321900886,0.1340904,92753.0,92752.0,0.68686173]
[1765321901485,0.1340904,92753.0,92752.0,0.96686173]
[1765321901983,0.1340904,92753.0,92752.0,0.96786173]
[1765321902286,0.1340904,92753.0,92752.0,0.50626173]
[1765321902581,0.1340904,92753.0,92752.0,1.00746173]
[1765321903479,0.1340904,92753.0,92752.0,1.00646173]
[1765321903675,0.1340904,92753.0,92752.0,0.12526173]
[1765321903882,0.1340904,92753.0,92752.0,0.62646173]
[1765321904185,0.1340904,92753.0,92752.0,0.12526173]
[1765321904682,0.1340904,92753.0,92752.0,0.00116173]
[1765321905077,0.1340904,92753.0,92752.0,0.06382173]
[1765321905275,0.1340904,92753.0,92752.0,0.06482173]
[1765321905679,0.1340904,92753.0,92752.0,0.06382173]
[1765321905979,0.1360904,92753.0,92752.0,0.00016173]
[1765321906181,0.1350904,92753.0,92752.0,0.06282173]
[1765321906484,0.1360904,92753.0,92752.0,0.06282173]
[1765321907679,0.1350904,92753.0,92752.0,0.00016173]
[1765321907879,0.1360904,92753.0,92752.0,0.00016173]
[1765321908289,0.1350904,92753.0,92752.0,0.00016173]
[1765321908489,0.1360904,92753.0,92752.0,0.00016173]
[1765321908984,0.1360904,92753.0,92752.0,0.12426173]
[1765321909688,0.1350904,92753.0,92752.0,0.12426173]
[1765321909986,0.1360904,92753.0,92752.0,0.12426173]
[1765321910392,0.1360904,92753.0,92752.0,0.00016173]
[1765321911087,0.1350904,92753.0,92752.0,0.00016173]
[1765321911889,0.1340904,92753.0,92752.0,0.00016173]
[1765321912092,0.1360904,92753.0,92752.0,0.00016173]
[1765321914084,0.1360904,92753.0,92752.0,0.06282173]
[1765321914285,0.1360904,92753.0,92752.0,0.12439173]
[1765321915495,0.1350904,92753.0,92752.0,0.12439173]
[1765321915683,0.1360904,92753.0,92752.0,0.12439173]
[1765321917593,0.1350904,92753.0,92752.0,0.12439173]
[1765321918393,0.1340904,92753.0,92752.0,0.12439173]
[1765321920995,0.1350904,92753.0,92752.0,0.12439173]
[1765321921801,0.0117804,92753.0,92752.0,0.12439173]
[1765321922202,0.001,92753.0,92752.0,0.12439173]
[1765321922393,0.001,92753.0,92752.0,0.50439173]
[1765321923396,0.0107803,92754.0,92753.0,0.1380704]
[1765321923597,0.1391686,92769.0,92768.0,0.12729]
[1765321924399,0.1391686,92769.0,92768.0,0.13787603]
[1765321925002,0.1411686,92769.0,92768.0,0.13787603]
[1765321927696,0.0127786,92769.0,92768.0,0.55787603]
[1765321928001,0.0127786,92769.0,92768.0,0.13787603]
[1765321928303,0.0127786,92769.0,92768.0,0.28787603]
[1765321928502,0.0770086,92769.0,92768.0,0.28787603]
[1765321928896,0.1401486,92769.0,92768.0,0.28787603]
[1765321929301,0.1763196,92760.0,92759.0,0.2042247]
[1765321929498,0.1763196,92760.0,92759.0,0.12681]
[1765321930405,0.1763196,92760.0,92759.0,0.12781]
[1765321930807,0.1763196,92760.0,92759.0,0.12881]
[1765321931008,0.1381496,92760.0,92759.0,0.13985558]
[1765321931705,0.1381496,92760.0,92759.0,0.13885558]
[1765321932306,0.1381496,92760.0,92759.0,0.13785558]
[1765321932612,0.1391496,92760.0,92759.0,0.13785558]
[1765321933210,0.1381496,92760.0,92759.0,0.13785558]
[1765321933910,0.1381496,92760.0,92759.0,0.13885558]
[1765321934410,0.1381496,92760.0,92759.0,0.13785558]
[1765321934608,0.1381496,92760.0,92759.0,0.13885558]
[1765321935610,0.1381496,92760.0,92759.0,0.13985558]
[1765321935813,0.0107796,92760.0,92759.0,0.50985558]
[1765321936110,0.0750096,92760.0,92759.0,0.50985558]
[1765321936612,0.0750096,92760.0,92759.0,0.50885558]
[1765321936913,0.0750096,92760.0,92759.0,0.50985558]
[1765321939714,0.0750096,92760.0,92759.0,0.50885558]
[1765321939918,0.0750096,92760.0,92759.0,0.50985558]
[1765321940118,0.0750096,92760.0,92759.0,0.16985558]
[1765321940307,0.1381496,92760.0,92759.0,0.16885558]
[1765321940616,0.1381496,92760.0,92759.0,0.16985558]
[1765321940910,0.0881496,92760.0,92759.0,0.50985558]
[1765321941916,0.0989292,92760.0,92759.0,0.50985558]
[1765321942309,0.0989292,92760.0,92759.0,0.50885558]
[1765321943107,0.0357892,92760.0,92759.0,0.50985558]
[1765321943311,0.0107796,92760.0,92759.0,0.50985558]
[1765321943510,0.0107796,92760.0,92759.0,0.50885558]
[1765321943709,0.0107796,92760.0,92759.0,0.50985558]
[1765321944106,0.0107796,92760.0,92759.0,0.50885558]
[1765321944316,0.0107796,92760.0,92759.0,0.50985558]
[1765321944921,0.0107796,92760.0,92759.0,0.59985558]
[1765321946414,0.0107794,92763.0,92762.0,0.0107789]
[1765321946621,0.0107794,92763.0,92762.0,0.9900589]
[1765321947709,0.0733194,92763.0,92762.0,0.9900589]
[1765321948316,0.073319,92766.0,92765.0,0.177209]
[1765321949817,0.137289,92766.0,92765.0,0.177209]
[1765321950518,0.138289,92766.0,92765.0,0.177209]
[1765321950923,0.1733696,92760.0,92759.0,0.13928558]
[1765321951114,0.1372896,92760.0,92759.0,0.56620558]
[1765321952125,0.1372896,92760.0,92759.0,0.56720558]
[1765321952423,0.1372896,92760.0,92759.0,0.14028558]
[1765321952626,0.1372896,92760.0,92759.0,0.64128558]
[1765321952928,0.1372896,92760.0,92759.0,0.64228558]
[1765321953630,0.1372896,92760.0,92759.0,0.64128558]
[1765321953816,0.1382896,92760.0,92759.0,0.64128558]
[1765321954525,0.1372896,92760.0,92759.0,0.64128558]
[1765321954924,0.1372896,92760.0,92759.0,0.64028558]
[1765321955524,0.1372896,92760.0,92759.0,0.64128558]
[1765321955919,0.1372896,92760.0,92759.0,0.64028558]
[1765321956119,0.1372896,92760.0,92759.0,0.64128558]
[1765321957821,0.1382896,92760.0,92759.0,0.64028558]
[1765321958529,0.1372896,92760.0,92759.0,0.64028558]
[1765321958930,0.1372896,92760.0,92759.0,0.65206528]
[1765321960318,0.1372896,92760.0,92759.0,0.64128558]
[1765321960932,0.1372896,92760.0,92759.0,0.64228558]
[1765321961435,0.1372896,92760.0,92759.0,0.64128558]
[1765321961637,0.1372896,92760.0,92759.0,0.64028558]
[1765321964433,0.1372896,92760.0,92752.0,0.03902173]
[1765321964434,0.12651,92757.0,92756.0,0.1435247]
[1765321964645,0.1372903,92754.0,92752.0,0.07757643]
[1765321964935,0.12651,92753.0,92752.0,0.12840173]
[1765321966938,0.12751,92753.0,92752.0,0.12840173]
[1765321967930,0.12751,92753.0,92752.0,0.13918223]
[1765321968535,0.12751,92753.0,92752.0,0.12840173]
[1765321969736,0.12651,92753.0,92752.0,0.12840173]
[1765321970530,0.12751,92753.0,92752.0,0.12840173]
[1765321970839,0.12851,92753.0,92752.0,0.12840173]
[1765321971524,0.12751,92753.0,92752.0,0.12840173]
[1765321971728,0.12851,92753.0,92752.0,0.12840173]
[1765321973250,0.12751,92753.0,92752.0,0.12840173]
[1765321974439,0.12751,92753.0,92752.0,0.13918223]
[1765321976333,0.12651,92753.0,92752.0,0.13918223]
[1765321977540,0.12651,92753.0,92752.0,0.12840173]
[1765321977938,0.12651,92753.0,92752.0,0.12940173]
[1765321978729,0.12651,92753.0,92752.0,0.12840173]
[1765321981343,0.12651,92753.0,92752.0,0.12940173]
[1765321983247,0.12651,92753.0,92752.0,0.12840173]
[1765321984048,0.12651,92753.0,92752.0,0.12940173]
[1765321984950,0.12651,92753.0,92752.0,0.12840173]
[1765321986535,0.12651,92753.0,92752.0,0.12940173]
[1765321988051,0.12651,92753.0,92752.0,0.12840173]
[1765321991351,0.12651,92753.0,92752.0,0.00016173]
[1765321991558,0.1348216,92743.0,92742.0,0.06034]
[1765321991758,0.1348216,92743.0,92742.0,0.12404]
[1765321993651,0.1358216,92743.0,92742.0,0.12404]
[1765321994045,0.1348216,92743.0,92742.0,0.12404]
[1765321994247,0.1358216,92743.0,92742.0,0.12404]
[1765321994447,0.1368216,92743.0,92742.0,0.12404]
[1765321995049,0.1358216,92743.0,92742.0,0.12404]
[1765321995245,0.1378216,92743.0,92742.0,0.12404]
[1765321996056,0.1657424,92736.0,92735.0,0.12404]
[1765321996262,0.1657424,92736.0,92735.0,0.06034]
[1765321998463,0.1667424,92736.0,92735.0,0.06034]
[1765321998657,0.12404,92734.0,92733.0,0.00016173]
[1765322000162,0.12404,92734.0,92733.0,0.12420173]
[1765322000366,0.12604,92734.0,92733.0,0.06050173]
[1765322001261,0.12804,92734.0,92733.0,0.06050173]
[1765322001766,0.12804,92734.0,92733.0,0.00016173]
[1765322001966,0.12404,92734.0,92733.0,0.06050173]
[1765322002166,0.12804,92734.0,92733.0,0.06050173]
[1765322002365,0.12804,92734.0,92733.0,0.12420173]
[1765322002561,0.12604,92734.0,92733.0,0.12420173]
[1765322002762,0.12804,92734.0,92733.0,0.12420173]
[1765322003867,0.12704,92734.0,92733.0,0.12420173]
[1765322004563,0.12504,92734.0,92733.0,0.12420173]
[1765322004769,0.12704,92734.0,92733.0,0.12420173]
[1765322005167,0.12604,92734.0,92733.0,0.12420173]
[1765322005466,0.12804,92734.0,92733.0,0.12420173]
[1765322005968,0.12604,92734.0,92733.0,0.12420173]
[1765322006870,0.12504,92734.0,92733.0,0.12420173]
[1765322007172,0.12604,92734.0,92733.0,0.12420173]
[1765322010373,0.12604,92734.0,92733.0,0.00016173]
[1765322010674,0.1389747,92716.0,92715.0,0.12704858]
[1765322011379,0.1389747,92716.0,92715.0,0.13771952]
[1765322011780,0.1389747,92716.0,92715.0,0.17588952]
[1765322012079,0.1389747,92716.0,92715.0,0.17688952]
[1765322012581,0.1399747,92716.0,92715.0,0.17588952]
[1765322013074,0.1399747,92716.0,92715.0,0.13771952]
[1765322014680,0.1389747,92716.0,92715.0,0.13771952]
[1765322015480,0.1399747,92716.0,92715.0,0.13771952]
[1765322018169,0.1399747,92716.0,92715.0,0.17588952]
[1765322019069,0.1389747,92716.0,92715.0,0.17588952]
[1765322019384,0.1399747,92716.0,92715.0,0.17588952]
[1765322020879,0.1389747,92716.0,92715.0,0.17588952]
[1765322021086,0.1389747,92716.0,92715.0,0.17688952]
[1765322021583,0.1389747,92716.0,92715.0,0.17588952]
[1765322023180,0.1389747,92716.0,92715.0,0.13771952]
[1765322023483,0.1575047,92716.0,92715.0,8e-08]
[1765322023678,0.1389758,92707.0,92706.0,0.06264173]
[1765322024783,0.1399758,92707.0,92706.0,0.06264173]
[1765322024980,0.1399758,92707.0,92706.0,0.12613173]
[1765322025286,0.1409758,92707.0,92706.0,0.12613173]
[1765322025586,0.1409758,92707.0,92706.0,0.00016173]
[1765322025880,0.1409758,92707.0,92706.0,0.06264173]
[1765322026185,0.1389769,92697.0,92696.0,0.12597]
[1765322026487,0.1389769,92697.0,92696.0,0.06248]
[1765322026683,0.1389776,92691.0,92690.0,0.12704887]
[1765322027989,0.1389776,92691.0,92690.0,0.12804887]
[1765322037287,0.1389776,92691.0,92690.0,0.16604887]
[1765322037493,0.1389776,92691.0,92690.0,0.12804887]
[1765322037993,0.1409076,92691.0,92690.0,0.16604887]
[1765322039493,0.1409076,92691.0,92690.0,4e-08]
[1765322041293,0.0107887,92682.0,92681.0,0.00016182]
[1765322041487,0.1376505,92666.0,92665.0,0.12409916]
[1765322042100,0.1376523,92651.0,92650.0,0.12302]
[1765322042393,0.0107934,92641.0,92640.0,0.00107945]
[1765322042587,0.1376534,92641.0,92640.0,0.16409945]
[1765322042787,0.1376534,92641.0,92640.0,0.17465918]
[1765322044090,0.1376534,92641.0,92640.0,0.17565918]
[1765322045797,0.1376534,92641.0,92640.0,0.17576918]
[1765322047897,0.0727034,92641.0,92640.0,0.17576918]
[1765322048288,0.0107934,92641.0,92640.0,0.17576918]
[1765322049093,0.0107934,92641.0,92639.0,0.0107936]
[1765322049094,0.0107964,92616.0,92606.0,0.0774147]
[1765322049389,0.13381,92591.0,92590.0,0.06230202]
[1765322049694,0.13381,92591.0,92590.0,0.02638004]
[1765322049695,0.4746093,92591.0,92590.0,0.02638004]
[1765322050387,0.47469011,92591.0,92590.0,0.00301244]
[1765322050592,0.47469011,92591.0,92568.0,0.0253]
[1765322050593,0.1446104,92581.0,92580.0,0.22893794]
[1765322050797,0.0108004,92581.0,92580.0,0.15645]
[1765322051499,0.1446104,92581.0,92580.0,0.12645]
[1765322052297,0.0108004,92581.0,92580.0,0.12645]
[1765322052502,0.0108004,92581.0,92580.0,0.13145]
[1765322054102,0.0773004,92581.0,92580.0,0.13145]
[1765322054301,0.1446104,92581.0,92580.0,0.13145]
[1765322054905,0.0773004,92581.0,92580.0,0.13145]
[1765322056002,0.0108004,92581.0,92580.0,0.13145]
[1765322057595,0.1446104,92581.0,92580.0,0.13145]
[1765322057800,0.0108004,92581.0,92580.0,0.13145]
[1765322058000,0.0773004,92581.0,92580.0,0.13145]
[1765322058210,0.1446104,92581.0,92580.0,0.13145]
[1765322058410,0.0108004,92581.0,92580.0,0.13145]
[1765322061106,0.1446104,92581.0,92580.0,0.13145]
[1765322063808,0.0773004,92581.0,92580.0,0.13145]
[1765322064008,0.0108004,92581.0,92580.0,0.13145]
[1765322064808,0.0108004,92581.0,92580.0,0.6168806]
[1765322065105,0.0108004,92581.0,92580.0,0.60608]
[1765322065311,8.081e-05,92591.0,92590.0,0.189]
[1765322066404,0.01088011,92591.0,92590.0,0.189]
[1765322067006,0.01088011,92591.0,92590.0,0.19]
[1765322067206,8.081e-05,92591.0,92590.0,0.62]
[1765322067411,8.081e-05,92591.0,92590.0,0.621]
[1765322067906,0.0107988,92596.0,92595.0,0.1997986]
[1765322068208,0.0107988,92596.0,92595.0,0.6297986]
[1765322068608,0.000162,92600.0,92598.0,0.1997983]
[1765322068609,0.0107984,92599.0,92598.0,0.1997983]
[1765322068910,0.01089762,92599.0,92598.0,0.549]
[1765322070511,0.01189762,92599.0,92598.0,0.549]
[1765322072118,0.000162,92600.0,92599.0,0.1997983]
[1765322072413,0.000162,92600.0,92599.0,0.6197983]
[1765322072614,0.000162,92600.0,92599.0,0.4297983]
[1765322073205,0.00122865,92600.0,92599.0,0.4297983]
[1765322073403,0.00122865,92600.0,92599.0,0.419]
[1765322073718,0.00222865,92600.0,92599.0,0.419]
[1765322073918,0.19369865,92600.0,92599.0,0.189]
[1765322078323,0.2022693,92591.0,92590.0,0.19008004]
[1765322079623,0.2032693,92591.0,92590.0,0.19008004]
[1765322079827,0.2042693,92591.0,92590.0,0.19008004]
[1765322080214,0.2032693,92591.0,92590.0,0.19008004]
[1765322080422,0.2022693,92591.0,92590.0,0.19008004]
[1765322083121,0.19169865,92600.0,92599.0,0.189]
[1765322083326,0.20249685,92600.0,92599.0,0.189]
[1765322084720,0.20449685,92600.0,92599.0,0.189]
[1765322085516,0.01402685,92600.0,92599.0,0.189]
[1765322085712,0.20549685,92600.0,92599.0,0.189]
[1765322087212,0.20349685,92600.0,92599.0,0.189]
[1765322088326,0.20249685,92600.0,92599.0,0.189]
[1765322090528,0.19169865,92600.0,92599.0,0.189]
[1765322090726,0.00022865,92600.0,92599.0,0.549]
[1765322092725,0.2022673,92609.0,92608.0,0.1970873]
[1765322093030,0.0107973,92609.0,92608.0,0.1970873]
[1765322093621,0.1939873,92609.0,92608.0,0.1970873]
[1765322094325,0.1949873,92609.0,92608.0,0.1970873]
[1765322095115,0.1959873,92609.0,92608.0,0.1970873]
[1765322096722,0.0127973,92609.0,92608.0,0.1970873]
[1765322096921,0.1054973,92609.0,92608.0,0.1970873]
[1765322097831,0.1968973,92609.0,92608.0,0.1970873]
[1765322098220,0.1861,92609.0,92608.0,0.1970873]
[1765322098422,0.002,92609.0,92608.0,0.5470873]
[1765322098620,0.002,92609.0,92608.0,1.126182]
[1765322098826,0.002,92609.0,92608.0,1.0487673]
[1765322100531,0.000162,92618.0,92617.0,0.1931262]
[1765322100730,0.000162,92618.0,92617.0,0.5531262]
[1765322101234,0.092862,92618.0,92617.0,0.5531262]
[1765322101636,0.186262,92618.0,92617.0,0.5531262]
[1765322102023,0.189262,92618.0,92617.0,0.5531262]
[1765322102224,0.189262,92618.0,92617.0,0.63051434]
[1765322102722,0.1948962,92617.0,92616.0,0.07738814]
[1765322102922,0.1948973,92608.0,92607.0,0.07738814]
[1765322103226,0.2491378,92604.0,92603.0,0.09067]
[1765322104226,0.1577378,92604.0,92603.0,0.18199]
[1765322104422,0.2491378,92604.0,92603.0,0.18199]
[1765322105238,0.23834,92604.0,92603.0,0.18299]
[1765322105628,0.23834,92604.0,92603.0,0.18399]
[1765322106328,0.2491378,92604.0,92603.0,0.18399]
[1765322106533,0.1034974,92608.0,92607.0,0.1798]
[1765322107037,0.1948974,92608.0,92607.0,0.1798]
[1765322110429,0.1958974,92608.0,92607.0,0.1798]
[1765322111131,0.1948974,92608.0,92607.0,0.1798]
[1765322111537,0.1958974,92608.0,92607.0,0.1798]
[1765322111937,0.1968974,92608.0,92607.0,0.1798]
[1765322112728,0.1958974,92608.0,92607.0,0.1798]
[1765322113329,0.1948974,92608.0,92607.0,0.1798]
[1765322113624,0.194948,92602.0,92600.0,0.07738814]
[1765322113839,0.194948,92602.0,92601.0,0.17359]
[1765322115738,0.194948,92602.0,92601.0,0.08678]
[1765322115929,0.194948,92602.0,92601.0,0.17359]
[1765322116530,0.195948,92602.0,92601.0,0.17359]
[1765322117137,0.194948,92602.0,92601.0,0.17359]
[1765322117441,0.195948,92602.0,92601.0,0.17359]
[1765322118330,0.195948,92602.0,92599.0,0.000162]
[1765322118331,0.18415,92600.0,92599.0,0.000162]
[1765322118727,0.18415,92600.0,92599.0,0.085932]
[1765322119135,0.18415,92600.0,92599.0,0.171702]
[1765322119936,0.106418,92602.0,92601.0,0.17082]
[1765322120127,0.196948,92602.0,92601.0,0.08541]
[1765322120331,0.18415,92600.0,92599.0,0.000162]
[1765322120732,0.18415,92600.0,92599.0,0.085042]
[1765322121141,0.18415,92600.0,92599.0,0.169922]
[1765322123751,0.18415,92600.0,92599.0,0.170922]
[1765322124334,0.18415,92600.0,92599.0,0.169922]
[1765322124529,0.18415,92600.0,92599.0,0.170922]
[1765322125242,0.1949482,92600.0,92599.0,0.170922]
[1765322125444,0.2506082,92600.0,92599.0,0.170922]
[1765322125639,0.0107982,92600.0,92599.0,0.170922]
[1765322125840,0.0107982,92600.0,92599.0,0.171922]
[1765322126047,0.0107982,92600.0,92599.0,0.391922]
[1765322126446,0.0107977,92605.0,92604.0,0.1634]
[1765322126646,0.0107977,92605.0,92604.0,0.5434]
[1765322127239,0.0971377,92605.0,92604.0,0.5434]
[1765322127542,0.0107977,92605.0,92604.0,0.5434]
[1765322127845,0.1861177,92605.0,92604.0,0.5434]
[1765322128041,0.1861177,92605.0,92604.0,0.1717]
[1765322128238,0.1861177,92605.0,92604.0,0.09]
[1765322128552,0.1861177,92605.0,92599.0,0.000162]
[1765322128553,0.17532,92600.0,92599.0,0.000162]
[1765322130441,0.17532,92600.0,92599.0,0.159422]
[1765322130647,0.17532,92600.0,92599.0,0.079792]
[1765322130851,0.17532,92600.0,92599.0,0.159422]
[1765322132645,0.17532,92600.0,92599.0,0.589422]
[1765322134158,0.17532,92600.0,92599.0,0.590422]
[1765322134455,0.17532,92600.0,92599.0,0.591422]
[1765322135252,0.08634,92600.0,92599.0,0.591422]
[1765322135454,0.0107981,92601.0,92600.0,0.15469]
[1765322135758,0.0107981,92601.0,92600.0,0.58469]
[1765322135952,0.0971381,92601.0,92600.0,0.58469]
[1765322136153,0.1861181,92601.0,92600.0,0.58469]
[1765322136346,0.0971381,92601.0,92600.0,0.58469]
[1765322136551,0.1861181,92601.0,92600.0,0.58569]
[1765322137254,0.1861181,92601.0,92600.0,0.58669]
[1765322138344,0.0107981,92601.0,92600.0,0.58669]
[1765322138658,0.23098,92604.0,92603.0,0.15118]
[1765322138844,0.23098,92604.0,92603.0,0.58118]
[1765322139748,0.05566,92604.0,92603.0,0.5919779]
[1765322139945,0.0107977,92605.0,92604.0,0.15018]
[1765322140151,0.0107977,92605.0,92604.0,0.53018]
[1765322140858,0.0107972,92609.0,92608.0,0.0107972]
[1765322141159,0.0107972,92609.0,92608.0,0.5199972]
[1765322141563,0.1861172,92609.0,92608.0,0.5199972]
[1765322142666,0.1871172,92609.0,92608.0,0.5199972]
[1765322142957,0.1871172,92609.0,92608.0,0.5092]
[1765322144964,0.1871172,92609.0,92608.0,1.01088]
[1765322146265,0.1871172,92609.0,92608.0,0.5092]
[1765322146451,0.1871172,92609.0,92608.0,1.01088]
[1765322149665,0.08734,92609.0,92608.0,1.0216773]
[1765322149966,0.001,92609.0,92608.0,1.0216773]
[1765322150566,0.05566,92640.0,92617.0,0.1507462]
[1765322150764,0.05566,92640.0,92629.0,0.0107948]
[1765322150765,0.0107946,92631.0,92629.0,0.0107948]
[1765322150967,0.1861146,92631.0,92630.0,0.64163]
[1765322152863,0.1861146,92631.0,92630.0,1.08089711]
[1765322153255,0.0157946,92631.0,92630.0,1.08189711]
[1765322153769,0.0197946,92631.0,92630.0,1.08289711]
[1765322153968,0.1024746,92631.0,92630.0,1.08289711]
[1765322154167,0.0197946,92631.0,92630.0,1.08289711]
[1765322154469,0.009,92631.0,92630.0,1.08289711]
[1765322155368,0.2365756,92640.0,92639.0,0.13654]
[1765322156366,0.0666156,92640.0,92639.0,0.13754]
[1765322156670,0.2365756,92640.0,92639.0,0.13754]
[1765322157058,0.2365756,92640.0,92639.0,0.13654]
[1765322157264,0.2365756,92640.0,92639.0,0.13754]
[1765322157675,0.1492956,92640.0,92639.0,0.13754]
[1765322157862,0.2365756,92640.0,92639.0,0.13754]
[1765322158066,0.2365756,92640.0,92639.0,0.13854]
[1765322158773,0.2365756,92640.0,92639.0,0.13954]
[1765322159475,0.2365756,92640.0,92639.0,0.003]
[1765322159974,0.2365756,92640.0,92639.0,0.07078]
[1765322160170,0.2365756,92640.0,92639.0,0.003]
[1765322160377,0.1807557,92622.0,92621.0,0.136302]
[1765322161164,0.1807557,92622.0,92621.0,0.14539539]
[1765322161970,0.1807557,92622.0,92621.0,0.14739539]
[1765322162177,0.1807557,92622.0,92621.0,0.01125539]
[1765322162678,0.1807557,92622.0,92621.0,0.08081539]
[1765322163177,0.1807557,92622.0,92621.0,0.01325539]
[1765322163571,0.1817557,92622.0,92621.0,0.00925539]
[1765322163873,0.1817557,92622.0,92621.0,0.14443539]
[1765322165182,0.1807557,92622.0,92621.0,0.14343539]
[1765322165483,0.1807557,92622.0,92621.0,0.14543539]
[1765322166378,0.1807557,92622.0,92621.0,0.14643539]
[1765322166580,0.1807557,92622.0,92621.0,0.14743539]
[1765322167882,0.1807557,92622.0,92621.0,0.14443539]
[1765322168084,0.1807557,92622.0,92621.0,0.14643539]
[1765322168481,0.1807557,92622.0,92621.0,0.14443539]
[1765322168783,0.1807557,92622.0,92621.0,0.14643539]
[1765322169283,0.1807557,92622.0,92621.0,0.14743539]
[1765322169681,0.1807557,92622.0,92621.0,0.14443539]
[1765322169877,0.1807557,92622.0,92621.0,0.14643539]
[1765322170079,0.0107957,92622.0,92621.0,0.14643539]
[1765322170282,0.0521,92624.0,92623.0,0.12824]
[1765322170477,0.0521,92624.0,92623.0,0.48824]
[1765322170779,0.13478,92624.0,92623.0,0.48824]
[1765322170979,0.22206,92624.0,92623.0,0.12824]
[1765322172582,0.22206,92624.0,92623.0,0.12924]
[1765322173369,0.22206,92624.0,92623.0,0.13124]
[1765322173881,0.22206,92624.0,92623.0,0.13024]
[1765322174081,0.22206,92624.0,92623.0,0.003]
[1765322175380,0.22206,92624.0,92623.0,0.0651]
[1765322176077,0.22206,92624.0,92623.0,0.12575]
[1765322176279,0.22206,92624.0,92623.0,0.12475]
[1765322176481,0.22206,92624.0,92623.0,0.12575]
[1765322176883,0.22206,92624.0,92623.0,0.52575]
[1765322177180,0.22206,92624.0,92623.0,0.52675]
[1765322177586,0.22206,92624.0,92623.0,0.23675]
[1765322177881,0.22206,92624.0,92623.0,0.23475]
[1765322178081,0.22206,92624.0,92623.0,0.23675]
[1765322178383,0.22206,92624.0,92623.0,0.12675]
[1765322179486,0.22206,92624.0,92623.0,0.003]
[1765322180076,0.22206,92624.0,92623.0,0.06247]
[1765322180889,0.22206,92624.0,92623.0,0.12191]
[1765322181183,0.22206,92624.0,92623.0,0.12091]
[1765322181385,0.22206,92624.0,92623.0,0.002]
[1765322181591,0.16422,92622.0,92621.0,0.058722]
[1765322181887,0.16422,92622.0,92621.0,0.117702]
[1765322182884,0.16422,92622.0,92621.0,0.119702]
[1765322183379,0.16422,92622.0,92621.0,0.120702]
[1765322184390,0.16422,92622.0,92621.0,0.118702]
[1765322184590,0.16422,92622.0,92621.0,0.121702]
[1765322187993,0.16422,92622.0,92621.0,0.1324978]
[1765322188691,0.16422,92622.0,92621.0,0.121702]
[1765322189081,0.16422,92622.0,92621.0,0.21010298]
[1765322189594,0.16422,92622.0,92621.0,0.19930718]
[1765322190898,0.16422,92622.0,92621.0,0.21010298]
[1765322191794,0.16422,92622.0,92621.0,0.19930718]
[1765322192191,0.16422,92622.0,92621.0,0.19830718]
[1765322192390,0.16422,92622.0,92621.0,0.19930718]
[1765322192995,0.16422,92622.0,92621.0,0.19530718]
[1765322193202,0.16422,92622.0,92621.0,0.19830718]
[1765322193693,0.16422,92622.0,92621.0,0.19930718]
[1765322196099,0.16422,92622.0,92621.0,0.121702]
[1765322198196,0.16422,92622.0,92621.0,0.117702]
[1765322198405,0.16422,92622.0,92621.0,0.120702]
[1765322199300,0.16422,92622.0,92621.0,0.118702]
[1765322199503,0.16422,92622.0,92621.0,0.19941531]
[1765322201196,0.16422,92622.0,92621.0,0.19741531]
[1765322201904,0.16422,92622.0,92621.0,0.19641531]
[1765322202306,0.16422,92622.0,92621.0,0.19541531]
[1765322202505,0.16422,92622.0,92621.0,0.19641531]
[1765322204107,0.16422,92622.0,92621.0,0.19741531]
[1765322205105,0.16422,92622.0,92621.0,0.19541531]
[1765322205300,0.16422,92622.0,92621.0,0.19641531]